fUSD/lending_fUSD_20260605
["ID","MTS","AMOUNT","RATE_DAILY","PERIOD"]
[424136677,1780607483000,-749.673451,0.00037917,30]
[424136673,1780607483000,-631.71,0.00037917,11]
[424136667,1780607483000,-500.0,0.00037917,11]
[424136669,1780607483000,-500.0,0.00037917,11]
[424136687,1780607483000,-648.06,0.00037917,11]
[424136762,1780607484000,-611.92,0.00037972,11]
[424136758,1780607484000,-500.0,0.00037972,11]
[424136761,1780607484000,-500.0,0.00037972,11]
[424136764,1780607484000,-858.66,0.00037972,11]
[424136760,1780607484000,-500.0,0.00037972,11]
[424136747,1780607484000,-500.0,0.00037972,11]
[424136755,1780607484000,-569.06,0.00037972,11]
[424136754,1780607484000,-527.04,0.00037972,11]
[424136756,1780607484000,-500.0,0.00037972,11]
[424136753,1780607484000,-621.31,0.00037972,11]
[424136746,1780607484000,-263.23264264,0.00037972,11]
[424136763,1780607484000,-500.0,0.00037972,11]
[424136757,1780607484000,-500.0,0.00037972,11]
[424136759,1780607484000,-933.84,0.00037972,11]
[424136773,1780607484000,-500.0,0.00037972,11]
[424136767,1780607484000,-919.67,0.00037972,11]
[424136766,1780607484000,-500.0,0.00037972,11]
[424136768,1780607484000,-500.0,0.00037972,11]
[424136775,1780607484000,-500.0,0.00037972,11]
[424136777,1780607484000,-500.0,0.00037972,11]
[424136769,1780607484000,-500.0,0.00037972,11]
[424136776,1780607484000,-500.0,0.00037972,11]
[424136772,1780607484000,-676.23,0.00037972,11]
[424136774,1780607484000,-500.0,0.00037972,11]
[424136770,1780607484000,-760.89,0.00037972,11]
[424136771,1780607484000,-500.0,0.00037972,11]
[424136778,1780607484000,-500.0,0.00037972,11]
[424136779,1780607484000,-601.68,0.00037972,11]
[424136765,1780607484000,-500.0,0.00037972,11]
[424136743,1780607484000,-400.3444166,0.00037972,11]
[424136725,1780607484000,-60482.09132874,0.00037957,2]
[424136748,1780607484000,-519.43,0.00037972,11]
[424136718,1780607484000,-520.25181531,0.00037918,11]
[424136720,1780607484000,-187.81219275,0.00037926,7]
[424136722,1780607484000,-158.02764846,0.00037937,2]
[424136721,1780607484000,-1592.0,0.00037934,11]
[424136724,1780607484000,-300.0,0.00037947,47]
[424136719,1780607484000,-509.05105614,0.00037918,11]
[424136723,1780607484000,-2320.0,0.00037945,11]
[424136727,1780607484000,-151.0,0.00037957,30]
[424136737,1780607484000,-500.0,0.00037972,11]
[424136726,1780607484000,-151.0,0.00037957,30]
[424136733,1780607484000,-630.74710949,0.00037971,11]
[424136736,1780607484000,-371.76382547,0.00037972,11]
[424136738,1780607484000,-290.08318637,0.00037972,11]
[424136731,1780607484000,-163.390817,0.00037969,14]
[424136728,1780607484000,-163.0,0.0003796,60]
[424136735,1780607484000,-500.0,0.00037972,11]
[424136734,1780607484000,-500.0,0.00037972,11]
[424136729,1780607484000,-168.83751745,0.00037962,11]
[424136730,1780607484000,-152.0,0.00037967,30]
[424136732,1780607484000,-675.79510841,0.00037971,30]
[424136740,1780607484000,-232.88473394,0.00037972,11]
[424136750,1780607484000,-500.0,0.00037972,11]
[424136751,1780607484000,-500.0,0.00037972,11]
[424136749,1780607484000,-500.0,0.00037972,11]
[424136742,1780607484000,-404.72440147,0.00037972,11]
[424136752,1780607484000,-500.0,0.00037972,11]
[424136741,1780607484000,-500.0,0.00037972,11]
[424136744,1780607484000,-500.0,0.00037972,11]
[424136739,1780607484000,-500.0,0.00037972,11]
[424136745,1780607484000,-500.0,0.00037972,11]
[424136783,1780607484000,-500.0,0.00037972,11]
[424136787,1780607484000,-704.67,0.00037972,11]
[424136780,1780607484000,-500.0,0.00037972,11]
[424136816,1780607484000,-500.0,0.00037972,11]
[424136819,1780607484000,-500.0,0.00037972,11]
[424136820,1780607484000,-506.64,0.00037972,11]
[424136823,1780607484000,-500.0,0.00037972,11]
[424136821,1780607484000,-500.0,0.00037972,11]
[424136828,1780607484000,-835.7,0.00037972,2]
[424136825,1780607484000,-500.0,0.00037972,11]
[424136824,1780607484000,-1480.09,0.00037972,2]
[424136822,1780607484000,-500.0,0.00037972,11]
[424136817,1780607484000,-500.0,0.00037972,11]
[424136826,1780607484000,-500.0,0.00037972,11]
[424136827,1780607484000,-573.72,0.00037972,11]
[424136830,1780607484000,-3897.01,0.00037972,11]
[424136832,1780607484000,-500.0,0.00037972,11]
[424136841,1780607484000,-500.0,0.00037972,11]
[424136842,1780607484000,-528.46883305,0.00037972,11]
[424136829,1780607484000,-620.97,0.00037972,11]
[424136840,1780607484000,-500.0,0.00037972,11]
[424136833,1780607484000,-500.0,0.00037972,11]
[424136831,1780607484000,-500.0,0.00037972,11]
[424136836,1780607484000,-500.0,0.00037972,2]
[424136835,1780607484000,-526.23,0.00037972,11]
[424136838,1780607484000,-622.52,0.00037972,11]
[424136839,1780607484000,-234.1128543,0.00037972,11]
[424136837,1780607484000,-959.73,0.00037972,11]
[424136834,1780607484000,-575.9036,0.00037972,2]
[424136782,1780607484000,-650.34,0.00037972,11]
[424136845,1780607484000,-2135.96,0.00037972,11]
[424136844,1780607484000,-500.0,0.00037972,11]
[424136818,1780607484000,-642.11,0.00037972,11]
[424136815,1780607484000,-500.0,0.00037972,11]
[424136843,1780607484000,-500.0,0.00037972,11]
[424136813,1780607484000,-500.0,0.00037972,11]
[424136814,1780607484000,-500.0,0.00037972,11]
[424136786,1780607484000,-500.0,0.00037972,11]
[424136789,1780607484000,-654.49,0.00037972,11]
[424136790,1780607484000,-655.5,0.00037972,11]
[424136781,1780607484000,-500.0,0.00037972,11]
[424136785,1780607484000,-500.0,0.00037972,11]
[424136784,1780607484000,-500.0,0.00037972,11]
[424136793,1780607484000,-500.0,0.00037972,11]
[424136791,1780607484000,-500.0,0.00037972,11]
[424136803,1780607484000,-500.0,0.00037972,11]
[424136792,1780607484000,-500.0,0.00037972,11]
[424136798,1780607484000,-1168.37,0.00037972,2]
[424136801,1780607484000,-500.0,0.00037972,11]
[424136799,1780607484000,-500.0,0.00037972,11]
[424136788,1780607484000,-500.0,0.00037972,11]
[424136796,1780607484000,-500.0,0.00037972,11]
[424136797,1780607484000,-454.87879746,0.00037972,11]
[424136811,1780607484000,-716.65,0.00037972,11]
[424136810,1780607484000,-500.0,0.00037972,11]
[424136807,1780607484000,-500.0,0.00037972,11]
[424136809,1780607484000,-545.45,0.00037972,11]
[424136808,1780607484000,-500.0,0.00037972,11]
[424136812,1780607484000,-587.58,0.00037972,11]
[424136805,1780607484000,-576.13,0.00037972,11]
[424136804,1780607484000,-500.0,0.00037972,11]
[424136802,1780607484000,-813.06,0.00037972,11]
[424136794,1780607484000,-500.0,0.00037972,11]
[424136795,1780607484000,-500.0,0.00037972,11]
[424136800,1780607484000,-500.0,0.00037972,11]
[424136806,1780607484000,-503.93,0.00037972,11]
[424136895,1780607485000,-500.0,0.00037972,11]
[424136883,1780607485000,-1430.55,0.00037972,11]
[424136894,1780607485000,-1955.75,0.00037972,11]
[424136884,1780607485000,-500.0,0.00037972,11]
[424136878,1780607485000,-776.69,0.00037972,11]
[424136879,1780607485000,-500.0,0.00037972,11]
[424136876,1780607485000,-500.0,0.00037972,11]
[424136881,1780607485000,-4090.61,0.00037972,11]
[424136882,1780607485000,-2807.22,0.00037972,11]
[424136887,1780607485000,-786.81,0.00037972,11]
[424136877,1780607485000,-578.2,0.00037972,11]
[424136880,1780607485000,-500.0,0.00037972,11]
[424136891,1780607485000,-500.0,0.00037972,11]
[424136888,1780607485000,-500.0,0.00037972,11]
[424136885,1780607485000,-500.0,0.00037972,11]
[424136889,1780607485000,-500.0,0.00037972,11]
[424136886,1780607485000,-500.0,0.00037972,11]
[424136890,1780607485000,-500.0,0.00037972,11]
[424136892,1780607485000,-500.0,0.00037972,11]
[424136896,1780607485000,-500.0,0.00037972,11]
[424136898,1780607485000,-500.0,0.00037972,11]
[424136907,1780607485000,-500.0,0.00037972,11]
[424136900,1780607485000,-790.25,0.00037972,11]
[424136899,1780607485000,-500.0,0.00037972,11]
[424136897,1780607485000,-500.0,0.00037972,11]
[424136875,1780607485000,-800.05,0.00037972,11]
[424136893,1780607485000,-601.28,0.00037972,11]
[424136870,1780607485000,-500.0,0.00037972,11]
[424136859,1780607485000,-500.0,0.00037972,11]
[424136871,1780607485000,-500.0,0.00037972,11]
[424136903,1780607485000,-639.59,0.00037972,11]
[424136852,1780607485000,-500.0,0.00037972,11]
[424136851,1780607485000,-500.0,0.00037972,11]
[424136850,1780607485000,-500.0,0.00037972,11]
[424136846,1780607485000,-731.99,0.00037972,11]
[424136847,1780607485000,-500.0,0.00037972,11]
[424136848,1780607485000,-500.0,0.00037972,11]
[424136849,1780607485000,-659.75,0.00037972,11]
[424136854,1780607485000,-500.0,0.00037972,11]
[424136853,1780607485000,-743.9,0.00037972,3]
[424136855,1780607485000,-4753.62,0.00037972,11]
[424136856,1780607485000,-500.0,0.00037972,11]
[424136874,1780607485000,-2618.0,0.00037972,11]
[424136867,1780607485000,-812.19,0.00037972,11]
[424136861,1780607485000,-4153.69,0.00037972,11]
[424136860,1780607485000,-500.0,0.00037972,11]
[424136868,1780607485000,-500.0,0.00037972,11]
[424136857,1780607485000,-1339.82,0.00037972,11]
[424136858,1780607485000,-500.0,0.00037972,11]
[424136863,1780607485000,-500.0,0.00037972,11]
[424136865,1780607485000,-623.71,0.00037972,11]
[424136862,1780607485000,-2524.42,0.00037972,11]
[424136864,1780607485000,-500.0,0.00037972,11]
[424136869,1780607485000,-500.0,0.00037972,11]
[424136873,1780607485000,-3768.72,0.00037972,11]
[424136872,1780607485000,-500.0,0.00037972,11]
[424136866,1780607485000,-500.0,0.00037972,11]
[424136906,1780607485000,-500.0,0.00037972,11]
[424136917,1780607485000,-500.0,0.00037972,11]
[424136901,1780607485000,-2658.89,0.00037972,11]
[424136937,1780607485000,-500.0,0.00037972,11]
[424136943,1780607485000,-537.21,0.00037972,11]
[424136936,1780607485000,-500.0,0.00037972,11]
[424136938,1780607485000,-500.0,0.00037972,11]
[424136939,1780607485000,-500.0,0.00037972,11]
[424136942,1780607485000,-500.0,0.00037972,11]
[424136940,1780607485000,-500.0,0.00037972,11]
[424136941,1780607485000,-500.0,0.00037972,11]
[424136945,1780607485000,-500.0,0.00037972,11]
[424136950,1780607485000,-500.0,0.00037972,11]
[424136947,1780607485000,-500.0,0.00037972,11]
[424136948,1780607485000,-500.0,0.00037972,11]
[424136932,1780607485000,-500.0,0.00037972,11]
[424136952,1780607485000,-500.0,0.00037972,11]
[424136953,1780607485000,-500.0,0.00037972,11]
[424136949,1780607485000,-500.0,0.00037972,11]
[424136946,1780607485000,-500.0,0.00037972,11]
[424136951,1780607485000,-500.0,0.00037972,11]
[424136956,1780607485000,-500.0,0.00037972,11]
[424136955,1780607485000,-500.0,0.00037972,11]
[424136957,1780607485000,-685.93,0.00037972,11]
[424136958,1780607485000,-500.0,0.00037972,11]
[424136962,1780607485000,-2656.95,0.00037972,11]
[424136959,1780607485000,-500.0,0.00037972,11]
[424136960,1780607485000,-500.0,0.00037972,11]
[424136904,1780607485000,-500.0,0.00037972,11]
[424136954,1780607485000,-2916.9,0.00037972,11]
[424136944,1780607485000,-519.35,0.00037972,11]
[424136961,1780607485000,-500.0,0.00037972,11]
[424136935,1780607485000,-3784.18,0.00037972,11]
[424136934,1780607485000,-500.0,0.00037972,11]
[424136902,1780607485000,-500.0,0.00037972,11]
[424136905,1780607485000,-500.0,0.00037972,11]
[424136919,1780607485000,-2550.57,0.00037972,11]
[424136908,1780607485000,-3642.31,0.00037972,11]
[424136910,1780607485000,-500.0,0.00037972,11]
[424136920,1780607485000,-521.5,0.00037972,11]
[424136911,1780607485000,-500.0,0.00037972,11]
[424136912,1780607485000,-2929.97,0.00037972,11]
[424136914,1780607485000,-500.0,0.00037972,11]
[424136918,1780607485000,-678.09,0.00037972,11]
[424136913,1780607485000,-500.0,0.00037972,11]
[424136916,1780607485000,-500.0,0.00037972,11]
[424136909,1780607485000,-610.07,0.00037972,11]
[424136963,1780607485000,-3429.27,0.00037972,11]
[424136915,1780607485000,-500.0,0.00037972,11]
[424136930,1780607485000,-755.81,0.00037972,11]
[424136929,1780607485000,-500.0,0.00037972,11]
[424136925,1780607485000,-550.29,0.00037972,11]
[424136927,1780607485000,-500.0,0.00037972,11]
[424136928,1780607485000,-500.0,0.00037972,11]
[424136922,1780607485000,-500.0,0.00037972,11]
[424136921,1780607485000,-3910.95,0.00037972,11]
[424136923,1780607485000,-500.0,0.00037972,11]
[424136924,1780607485000,-566.1,0.00037972,11]
[424136933,1780607485000,-670.74,0.00037972,11]
[424136931,1780607485000,-559.05,0.00037972,11]
[424136926,1780607485000,-500.0,0.00037972,11]
[424136995,1780607486000,-528.3,0.00037972,11]
[424136996,1780607486000,-500.0,0.00037972,11]
[424136991,1780607486000,-500.0,0.00037972,11]
[424136994,1780607486000,-813.02,0.00037972,11]
[424136999,1780607486000,-551.55,0.00037972,11]
[424137001,1780607486000,-693.12,0.00037972,11]
[424137002,1780607486000,-500.0,0.00037972,11]
[424136997,1780607486000,-500.0,0.00037972,11]
[424136998,1780607486000,-500.0,0.00037972,11]
[424136992,1780607486000,-500.0,0.00037972,11]
[424137003,1780607486000,-500.0,0.00037972,11]
[424137007,1780607486000,-500.0,0.00037972,11]
[424137000,1780607486000,-1000.88,0.00037972,11]
[424137005,1780607486000,-3929.4,0.00037972,11]
[424137015,1780607486000,-500.0,0.00037972,11]
[424137014,1780607486000,-553.69112825,0.00037972,11]
[424137006,1780607486000,-857.23,0.00037972,11]
[424137009,1780607486000,-500.0,0.00037972,11]
[424137004,1780607486000,-500.0,0.00037972,11]
[424137008,1780607486000,-500.0,0.00037972,11]
[424136986,1780607486000,-500.0,0.00037972,11]
[424137010,1780607486000,-500.0,0.00037972,11]
[424136993,1780607486000,-500.0,0.00037972,11]
[424136989,1780607486000,-611.11,0.00037972,11]
[424136975,1780607486000,-3144.39,0.00037972,11]
[424136990,1780607486000,-500.0,0.00037972,11]
[424137013,1780607486000,-500.0,0.00037972,11]
[424136965,1780607486000,-543.2,0.00037972,11]
[424136966,1780607486000,-597.61,0.00037972,11]
[424136964,1780607486000,-500.0,0.00037972,11]
[424136967,1780607486000,-534.29728359,0.00037972,11]
[424136968,1780607486000,-500.0,0.00037972,11]
[424136969,1780607486000,-500.0,0.00037972,11]
[424136970,1780607486000,-500.0,0.00037972,11]
[424136971,1780607486000,-500.0,0.00037972,11]
[424136973,1780607486000,-500.0,0.00037972,11]
[424136974,1780607486000,-500.0,0.00037972,11]
[424136972,1780607486000,-500.0,0.00037972,11]
[424136977,1780607486000,-500.0,0.00037972,11]
[424136976,1780607486000,-500.0,0.00037972,11]
[424136979,1780607486000,-790.85,0.00037972,11]
[424136978,1780607486000,-500.0,0.00037972,11]
[424136980,1780607486000,-606.24,0.00037972,11]
[424136982,1780607486000,-500.0,0.00037972,11]
[424136985,1780607486000,-500.0,0.00037972,11]
[424136981,1780607486000,-500.0,0.00037972,11]
[424136984,1780607486000,-3678.48,0.00037972,11]
[424136983,1780607486000,-500.0,0.00037972,11]
[424136987,1780607486000,-2971.37,0.00037972,11]
[424136988,1780607486000,-612.5,0.00037972,11]
[424137011,1780607486000,-500.0,0.00037972,11]
[424137012,1780607486000,-500.0,0.00037972,11]
[424137057,1780607486000,-187.729829,0.00037972,30]
[424137046,1780607486000,-1000.0,0.00037972,11]
[424137043,1780607486000,-151.0,0.00037972,30]
[424137054,1780607486000,-187.729829,0.00037972,30]
[424137051,1780607486000,-187.729829,0.00037972,30]
[424137047,1780607486000,-1659.94,0.00037972,11]
[424137055,1780607486000,-4258.06,0.00037972,11]
[424137048,1780607486000,-2214.43,0.00037972,11]
[424137052,1780607486000,-4748.28,0.00037972,11]
[424137049,1780607486000,-1030.09,0.00037972,11]
[424137050,1780607486000,-7062.86,0.00037972,11]
[424137065,1780607486000,-268.061888,0.00037972,30]
[424137066,1780607486000,-2213.59,0.00037972,11]
[424137056,1780607486000,-3279.15,0.00037972,11]
[424137059,1780607486000,-4051.49,0.00037972,11]
[424137068,1780607486000,-1136.96,0.00037972,11]
[424137061,1780607486000,-500.0,0.00037972,11]
[424137067,1780607486000,-500.0,0.00037972,11]
[424137058,1780607486000,-187.729825,0.00037972,30]
[424137060,1780607486000,-646.93,0.00037972,11]
[424137062,1780607486000,-42026.07,0.00037972,11]
[424137064,1780607486000,-500.0,0.00037972,11]
[424137017,1780607486000,-500.0,0.00037972,11]
[424137063,1780607486000,-500.0,0.00037972,11]
[424137045,1780607486000,-500.0,0.00037972,11]
[424137044,1780607486000,-500.0,0.00037972,11]
[424137053,1780607486000,-500.0,0.00037972,11]
[424137034,1780607486000,-574.18,0.00037972,11]
[424137016,1780607486000,-500.0,0.00037972,11]
[424137019,1780607486000,-500.0,0.00037972,11]
[424137018,1780607486000,-534.54,0.00037972,11]
[424137021,1780607486000,-3108.82,0.00037972,11]
[424137020,1780607486000,-500.0,0.00037972,11]
[424137023,1780607486000,-3559.2,0.00037972,11]
[424137026,1780607486000,-3194.29,0.00037972,11]
[424137042,1780607486000,-500.0,0.00037972,11]
[424137027,1780607486000,-3404.48,0.00037972,11]
[424137025,1780607486000,-500.0,0.00037972,11]
[424137028,1780607486000,-5109.23,0.00037972,11]
[424137022,1780607486000,-500.0,0.00037972,11]
[424137041,1780607486000,-12766.74,0.00037972,11]
[424137024,1780607486000,-11048.61,0.00037972,11]
[424137030,1780607486000,-500.0,0.00037972,11]
[424137040,1780607486000,-500.0,0.00037972,11]
[424137031,1780607486000,-3613.85,0.00037972,11]
[424137029,1780607486000,-2986.9,0.00037972,11]
[424137032,1780607486000,-5602.37,0.00037972,11]
[424137035,1780607486000,-204.98029672,0.00037972,11]
[424137033,1780607486000,-500.0,0.00037972,11]
[424137037,1780607486000,-500.0,0.00037972,11]
[424137038,1780607486000,-8973.49,0.00037972,11]
[424137039,1780607486000,-500.0,0.00037972,11]
[424137036,1780607486000,-674.66,0.00037972,11]
[424137116,1780607487000,-1541.829306,0.00037972,28]
[424137115,1780607487000,-8231.59,0.00037972,11]
[424137108,1780607487000,-1541.829306,0.00037972,28]
[424137109,1780607487000,-1541.829306,0.00037972,28]
[424137103,1780607487000,-4272.54,0.00037972,11]
[424137100,1780607487000,-1520.84,0.00037972,11]
[424137101,1780607487000,-256.577515,0.00037972,30]
[424137105,1780607487000,-500.0,0.00037972,11]
[424137099,1780607487000,-500.0,0.00037972,11]
[424137104,1780607487000,-5268.13,0.00037972,11]
[424137118,1780607487000,-500.0,0.00037972,11]
[424137102,1780607487000,-4095.64,0.00037972,11]
[424137114,1780607487000,-500.0,0.00037972,11]
[424137122,1780607487000,-500.0,0.00037972,11]
[424137111,1780607487000,-500.0,0.00037972,11]
[424137112,1780607487000,-696.57,0.00037972,11]
[424137117,1780607487000,-500.0,0.00037972,11]
[424137110,1780607487000,-500.0,0.00037972,11]
[424137119,1780607487000,-7481.71,0.00037972,11]
[424137120,1780607487000,-2885.57,0.00037972,11]
[424137121,1780607487000,-1541.829303,0.00037972,28]
[424137130,1780607487000,-500.0,0.00037972,11]
[424137126,1780607487000,-500.0,0.00037972,11]
[424137127,1780607487000,-3629.92,0.00037972,11]
[424137123,1780607487000,-500.0,0.00037972,11]
[424137124,1780607487000,-500.0,0.00037972,11]
[424137097,1780607487000,-256.57751,0.00037972,30]
[424137113,1780607487000,-1070.68,0.00037972,11]
[424137098,1780607487000,-500.0,0.00037972,11]
[424137079,1780607487000,-500.0,0.00037972,11]
[424137107,1780607487000,-500.0,0.00037972,11]
[424137070,1780607487000,-500.0,0.00037972,11]
[424137080,1780607487000,-500.0,0.00037972,11]
[424137069,1780607487000,-555.64414472,0.00037972,11]
[424137071,1780607487000,-6291.69,0.00037972,11]
[424137076,1780607487000,-60421.87,0.00037972,11]
[424137074,1780607487000,-710.84,0.00037972,11]
[424137077,1780607487000,-592.72,0.00037972,11]
[424137073,1780607487000,-500.0,0.00037972,11]
[424137078,1780607487000,-500.0,0.00037972,11]
[424137081,1780607487000,-500.0,0.00037972,11]
[424137072,1780607487000,-500.0,0.00037972,11]
[424137075,1780607487000,-878.15,0.00037972,11]
[424137083,1780607487000,-2494.03,0.00037972,11]
[424137084,1780607487000,-2613.9,0.00037972,11]
[424137094,1780607487000,-550.43,0.00037972,11]
[424137085,1780607487000,-256.57751,0.00037972,30]
[424137093,1780607487000,-2870.25,0.00037972,11]
[424137082,1780607487000,-500.0,0.00037972,11]
[424137092,1780607487000,-500.0,0.00037972,11]
[424137089,1780607487000,-500.0,0.00037972,11]
[424137086,1780607487000,-500.0,0.00037972,11]
[424137088,1780607487000,-233.08476212,0.00037972,11]
[424137087,1780607487000,-500.0,0.00037972,11]
[424137090,1780607487000,-256.57751,0.00037972,30]
[424137091,1780607487000,-1515.33,0.00037972,11]
[424137096,1780607487000,-500.0,0.00037972,11]
[424137106,1780607487000,-500.0,0.00037972,11]
[424137095,1780607487000,-4656.83,0.00037972,11]
[424137129,1780607487000,-3491.73,0.00037972,11]
[424137190,1780607487000,-500.0,0.00037972,11]
[424137128,1780607487000,-500.0,0.00037972,11]
[424137163,1780607487000,-2636.65,0.00037972,11]
[424137162,1780607487000,-500.0,0.00037972,11]
[424137161,1780607487000,-41097.1,0.00037972,11]
[424137165,1780607487000,-500.0,0.00037972,11]
[424137167,1780607487000,-500.0,0.00037972,11]
[424137169,1780607487000,-5003.27,0.00037972,11]
[424137171,1780607487000,-4478.44,0.00037972,11]
[424137168,1780607487000,-4385.53,0.00037972,11]
[424137170,1780607487000,-500.0,0.00037972,11]
[424137178,1780607487000,-7726.77,0.00037972,11]
[424137172,1780607487000,-1928.99,0.00037972,11]
[424137173,1780607487000,-500.0,0.00037972,11]
[424137175,1780607487000,-500.0,0.00037972,11]
[424137177,1780607487000,-500.0,0.00037972,11]
[424137176,1780607487000,-500.0,0.00037972,11]
[424137174,1780607487000,-578.29,0.00037972,11]
[424137180,1780607487000,-500.0,0.00037972,11]
[424137189,1780607487000,-3569.41,0.00037972,11]
[424137182,1780607487000,-3691.76,0.00037972,11]
[424137186,1780607487000,-500.0,0.00037972,11]
[424137184,1780607487000,-500.0,0.00037972,11]
[424137187,1780607487000,-728.56,0.00037972,11]
[424137185,1780607487000,-500.0,0.00037972,11]
[424137179,1780607487000,-500.0,0.00037972,11]
[424137183,1780607487000,-500.0,0.00037972,11]
[424137181,1780607487000,-876.27,0.00037972,11]
[424137125,1780607487000,-500.0,0.00037972,11]
[424137164,1780607487000,-3000.27,0.00037972,11]
[424137160,1780607487000,-3061.44,0.00037972,11]
[424137188,1780607487000,-674.62,0.00037972,11]
[424137158,1780607487000,-500.0,0.00037972,11]
[424137159,1780607487000,-500.0,0.00037972,11]
[424137133,1780607487000,-3854.17,0.00037972,11]
[424137142,1780607487000,-237.598218,0.00037972,30]
[424137131,1780607487000,-151.0,0.00037972,30]
[424137134,1780607487000,-500.0,0.00037972,11]
[424137139,1780607487000,-500.0,0.00037972,11]
[424137137,1780607487000,-237.598218,0.00037972,30]
[424137138,1780607487000,-237.598218,0.00037972,30]
[424137141,1780607487000,-500.0,0.00037972,11]
[424137140,1780607487000,-683.5,0.00037972,11]
[424137135,1780607487000,-3702.47,0.00037972,11]
[424137136,1780607487000,-500.0,0.00037972,11]
[424137143,1780607487000,-500.0,0.00037972,11]
[424137144,1780607487000,-500.0,0.00037972,11]
[424137132,1780607487000,-7462.52,0.00037972,11]
[424137145,1780607487000,-28929.84,0.00037972,11]
[424137157,1780607487000,-2625.55,0.00037972,11]
[424137155,1780607487000,-500.0,0.00037972,11]
[424137166,1780607487000,-3072.47,0.00037972,11]
[424137156,1780607487000,-500.0,0.00037972,11]
[424137146,1780607487000,-237.598212,0.00037972,30]
[424137150,1780607487000,-500.0,0.00037972,11]
[424137152,1780607487000,-500.0,0.00037972,11]
[424137153,1780607487000,-3298.28,0.00037972,11]
[424137149,1780607487000,-500.0,0.00037972,11]
[424137154,1780607487000,-2564.12,0.00037972,11]
[424137148,1780607487000,-4447.46,0.00037972,7]
[424137147,1780607487000,-6161.84,0.00037972,11]
[424137151,1780607487000,-2404.02,0.00037972,11]
[424137229,1780607488000,-3101.67,0.00037972,11]
[424137231,1780607488000,-2831.2,0.00037972,11]
[424137241,1780607488000,-500.0,0.00037972,11]
[424137240,1780607488000,-448.56761474,0.00037972,11]
[424137226,1780607488000,-500.0,0.00037972,11]
[424137228,1780607488000,-500.0,0.00037972,11]
[424137223,1780607488000,-557.93204171,0.00037972,11]
[424137225,1780607488000,-953.86,0.00037972,10]
[424137222,1780607488000,-12422.13,0.00037972,11]
[424137227,1780607488000,-719.33,0.00037972,7]
[424137230,1780607488000,-500.0,0.00037972,11]
[424137232,1780607488000,-500.0,0.00037972,11]
[424137237,1780607488000,-500.0,0.00037972,11]
[424137234,1780607488000,-4647.15,0.00037972,11]
[424137239,1780607488000,-2411.26,0.00037972,11]
[424137233,1780607488000,-5779.59,0.00037972,11]
[424137238,1780607488000,-500.0,0.00037972,11]
[424137236,1780607488000,-500.0,0.00037972,11]
[424137242,1780607488000,-4510.34,0.00037972,11]
[424137245,1780607488000,-4348.87,0.00037972,11]
[424137243,1780607488000,-523.05,0.00037972,11]
[424137244,1780607488000,-500.0,0.00037972,11]